Cogmind - Beta 10.2 @@@ ROGUE MODE // 2021.02.13 @ 20:04:26 Player: Chloroform Result: Destroyed by G-34 Mercenary with Small Laser Performance ------------- Evolutions (0) 0 Regions Visited (1) 200 Robots Destroyed (17) 85 Value Destroyed (363) 363 Prototype IDs (0) 0 Alien Tech Used (0) 0 Bonus (0) 0 TOTAL SCORE: 648 Bonus ------- None Cogmind --------- Core Integrity 0/250 Matter 275/300 Energy 90/100 System Corruption 0% Temperature Cool (6) Movement Walking (180) Ox2 Location -10/Materials Parts ------- > --- POWER (1) -------- (None) > --- PROPULSION (2) --- Aluminum Leg > --- UTILITY (2) ------ Small Storage Unit Large Storage Unit > --- WEAPON (2) ------- Hammer Hammer > --- INVENTORY (12) --- Light Ion Engine Light Treads Light Treads Wheel Structural Scanner Visual Processing Unit Sensor Array Targeting Computer EM Pulse Gun Hammer Peak State ------------ > --- POWER ------------ Light Ion Engine > --- PROPULSION ------- Aluminum Leg Aluminum Leg > --- UTILITY ---------- Small Storage Unit Large Storage Unit > --- WEAPON ----------- Hammer Hammer > --- INVENTORY -------- Light Ion Engine Light Treads Light Treads Aluminum Leg Wheel Structural Scanner Visual Processing Unit Sensor Array Targeting Computer EM Pulse Gun Hammer [Rating: 8] Favorites ----------- Power Light Ion Engine Engine Light Ion Engine Propulsion Aluminum Leg Leg Aluminum Leg Utility Small Storage Unit Storage Small Storage Unit Weapon Assault Rifle Energy Gun EM Pulse Gun Ballistic Gun Assault Rifle Impact Weapon Hammer Build | -11 -10 ------- Run | Scr Mat Slots Evolved . | . . Power . | . . Propulsion . | . . Utility . | . . Weapon . | . . Parts Attached 17 | 7 10 Power 2 | 1 1 Engine 2 | 1 1 Core . | . . Reactor . | . . Propulsion 5 | 2 3 Treads . | . . Leg 5 | 2 3 Wheel . | . . Hover . | . . Flight . | . . Utility 2 | 1 1 Device . | . . Storage 2 | 1 1 Processor . | . . Hackware . | . . Protection . | . . Artifact . | . . Weapon 8 | 3 5 Energy Gun 4 | 2 2 Energy Cannon . | . . Ballistic Gun 2 | 1 1 Ballistic Cannon . | . . Launcher . | . . Special Weapon . | . . Impact Weapon 2 | . 2 Slashing Weapon . | . . Piercing Weapon . | . . Special Melee Weapon . | . . Unidentified Prototypes . | . . Parts Lost 7 | . 7 Power 1 | . 1 Propulsion 3 | . 3 Utility . | . . Weapon 3 | . 3 Highest Loss Streak 3 | . 3 Average Slot Usage (%) 85 | . 85 Engine 12 | . 12 Leg 26 | . 26 Storage 18 | . 18 Energy Gun 6 | . 6 Ballistic Gun 15 | . 15 Impact Weapon 4 | . 4 Naked Turns . | . . Heaviest Build 27 | 10 27 Greatest Support 20 | 20 20 Greatest Overweight (x) 2 | . 2 Average Overweight (x) . | . . Largest Inventory Capacity 12 | 6 12 Average Capacity 7 | 5 8 Most Carried 12 | 6 12 Average Carried 6 | 3 6 Final Capacity 12 | 6 12 Final Carried 10 | 6 10 Class Distribution -------------------- 100% | Mutant Dominant Class ---------------- Mutant | -10/Materials Resources | -11 -10 ----------- Run | Scr Mat Matter Collected 526 | 213 313 Remotely . | . . Salvage Created 497 | . 497 Parts 33 | . 33 Haulers Intercepted . | . . Recyclers Shooed 2 | . 2 Parts Field Recycled . | . . Retrieved Matter . | . . Parts Self-Destructed . | . . Prevented . | . . Kills | -11 -10 ------- Run | Scr Mat Combat Hostiles Destroyed 14 | . 14 Melee 1 | . 1 Guns 13 | . 13 Classes Destroyed 4 | . 4 Worker 2 | . 2 Watcher 1 | . 1 Swarmer 6 | . 6 Grunt 8 | . 8 Best Kill Streak 6 | . 6 Combat Bots Only 6 | . 6 Max Kills in Single Turn 1 | . 1 Gunslinging . | . . Exploded . | . . Melee 1 | . 1 Uniques/NPCs Destroyed . | . . Combat | -11 -10 -------- Run | Scr Mat Damage Taken 1038 | . 1038 Core 251 | . 251 Absorbed by Shields . | . . Core Remaining (%) 100 | 100 . Volleys Fired 58 | . 58 Largest 2 | . 2 Hottest 60 | . 60 Shots Fired 113 | . 113 Gun 113 | . 113 Cannon . | . . Launcher . | . . Special . | . . Kinetic 83 | . 83 Thermal . | . . Explosive . | . . Electromagnetic 30 | . 30 Robot Hit Streak 9 | . 9 Robot Miss Streak 4 | . 4 Penetration Max . | . . Secondary Targets 1 | . 1 Max Gunslinging Chain 1 | . 1 Shots Hit Robots 73 | . 73 Core Hits 26 | . 26 Critical Hits . | . . Critical Kills . | . . Critical Parts Destroyed . | . . Melee Attacks 18 | . 18 Impact 18 | . 18 Slashing . | . . Piercing . | . . Sneak Attacks . | . . Combat Hostiles . | . . Follow-up Attacks 3 | . 3 Damage Inflicted 895 | . 895 Guns 627 | . 627 Cannons . | . . Explosions . | . . Melee 263 | . 263 Ramming 5 | . 5 Kinetic 459 | . 459 Thermal . | . . Explosive . | . . Electromagnetic 168 | . 168 Impact 263 | . 263 Slashing . | . . Piercing . | . . Highest Corruption . | . . Average Corruption . | . . Corruption Purged . | . . Overload Shots . | . . Overflow Damage . | . . Projectiles . | . . Explosions . | . . Melee . | . . Knockbacks 4 | . 4 Impact 4 | . 4 Kinetic . | . . Secondary . | . . Self-Inflicted Damage 2 | . 2 Shots . | . . Rammed 3 | . 3 Targets Rammed 3 | . 3 Kicked . | . . Crushed . | . . Highest Temperature 42 | . 42 Average Temperature 11 | . 11 Received Heat Transfer 480 | . 480 Siege Activations . | . . Robots Corrupted . | . . Combat Hostiles . | . . Parts Fried . | . . Impact Corruptions . | . . Robots Melted . | . . Combat Hostiles . | . . Parts Melted . | . . Heat Transferred . | . . Parts Sabotaged . | . . Parts Stolen . | . . Parts Stripped . | . . Power Chain Reactions . | . . Missiles Intercepted . | . . Alert | -11 -10 ------- Run | Scr Mat Peak Influence 267 | . 267 Initial . | . . Average 93 | . 105 Maximum Alert Level 1 | . 1 Low Security (%) 95 | 100 95 Level 1 4 | . 4 Level 2 . | . . Level 3 . | . . Level 4 . | . . Level 5 . | . . High Security . | . . Max Security . | . . Squads Dispatched 3 | . 3 Investigation 2 | . 2 Extermination . | . . Reinforcement 1 | . 1 Assault . | . . Garrison . | . . Intercept . | . . Construction Impeded . | . . Haulers Reinforced . | . . Stealth | -11 -10 --------- Run | Scr Mat Distress Signals . | . . Communications Jammed . | . . Distress Signals . | . . Times Spotted 21 | . 21 Peak Tracking Total 3 | . 3 Tactical Retreats . | . . Traps | -11 -10 ------- Run | Scr Mat Traps Triggered 3 | . 3 Indirectly . | . . Trap Hack Attempts . | . . Triggered . | . . Disarmed . | . . Reprogrammed . | . . Reused . | . . Traps Extracted . | . . Installed . | . . Triggered . | . . Machines | -11 -10 ---------- Run | Scr Mat Machines Disabled . | . . Max in Single Turn . | . . Machines Sabotaged . | . . Garrisons Compromised . | . . Overloaded Fab Kills . | . . Fab Network Shutdowns . | . . Hacking | -11 -10 --------- Run | Scr Mat Machines Accessed 2 | . 2 Terminals 2 | . 2 Fabricators . | . . Repair Stations . | . . Recycling Units . | . . Scanalyzers . | . . Garrison Access . | . . Total Hacks 5 | . 5 Successful 2 | . 2 Failed 3 | . 3 Catastrophic 1 | . 1 Database Lockouts . | . . Manual 3 | . 3 Terminals 5 | . 5 Fabricators . | . . Repair Stations . | . . Recycling Units . | . . Scanalyzers . | . . Garrison Access . | . . Terminal Hacks 2 | . 2 Part Schematic 1 | . 1 Branch Access Points 1 | . 1 Fabricator Hacks . | . . Repair Station Hacks . | . . Recycling Unit Hacks . | . . Scanalyzer . | . . Garrison Access Hacks . | . . Unauthorized Hacks . | . . Terminals . | . . Fabricators . | . . Repair Stations . | . . Recycling Units . | . . Scanalyzers . | . . Garrison Access . | . . Data Cores Recovered . | . . Used . | . . Hacking Detections 1 | . 1 Full Trace Events 1 | . 1 Feedback Events . | . . Feedback Blocked . | . . Robot Schematics Acquired . | . . Robots Built . | . . Matter . | . . Time . | . . Total Robot Build Rating . | . . Part Schematics Acquired 1 | . 1 Parts Built . | . . Matter . | . . Time . | . . Total Part Build Rating . | . . Parts Repaired . | . . Time . | . . Parts Recycled . | . . Recycled Matter . | . . Retrieved Matter . | . . Retrieved Components . | . . Parts Scanalyzed . | . . Part Schematics Acquired . | . . Parts Damaged . | . . Bothacking | -11 -10 ------------ Run | Scr Mat Used RIF Installer . | . . Robots Hacked . | . . Non-combat . | . . Combat . | . . Robot Hacks Applied . | . . Relay Couplers Released . | . . Robots Rewired . | . . Allies Hacked . | . . Hacks Repelled . | . . Allies | -11 -10 -------- Run | Scr Mat Total Allies . | . . Largest Group . | . . Highest-Rated Group . | . . Highest-Rated Ally . | . . Total Orders . | . . Ally Attacks . | . . Total Damage . | . . Kills . | . . Allies Corrupted . | . . Allies Melted . | . . Intel | -11 -10 ------- Run | Scr Mat Robot Analysis Total . | . . Derelict Logs Recovered . | . . Drone Launches . | . . Drone Recoveries . | . . Exploration | -11 -10 ------------- Run | Scr Mat Turns Passed 865 | 95 770 Spaces Moved 443 | 69 374 Core 5 | 5 . Treads . | . . Legs 438 | 64 374 Wheels . | . . Hover . | . . Flight . | . . Fastest Speed 50 | 50 120 Average Speed 128 | 114 130 Slowest Speed 180 | 120 180 Overloaded Moves . | . . Propulsion Burnouts . | . . Robots Hopped . | . . Cave-ins Triggered . | . . Exploration Rate (%) 34 | 4 64 Regions Visited 1 Branch Regions . Pre-discovered Areas . | . . Known Exits Taken . | . . Unknown Exits Taken 1 | 1 . Scrap Searched . | . . Spaces Dug . | . . Terrain Destroyed . | . . Melee . | . . Projectile . | . . AOE . | . . Terrain Rammed . | . . Walls Destroyed . | . . Machines Disabled . | . . Actions | -11 -10 --------- Run | Scr Mat Total 606 | 81 525 Wait 51 | . 51 Move 442 | 68 374 Hop . | . . Pick Up 16 | 6 10 Fast Attach 10 | 6 4 Attach 4 | . 4 Detach . | . . Swap 3 | 1 2 Drop 4 | . 4 Fire 58 | . 58 Melee 15 | . 15 Ram . | . . Kick 3 | . 3 Crush . | . . Escape Stasis . | . . Rewire . | . . Trap . | . . Miscellaneous . | . . Route ------- -11/Scrapyard -10/Materials (discovered 1 exit: *Min) History --------- Turn | Location | Event 9 | -11/Scrapyard | Discovered new exit (range 16) 96 | -11/Scrapyard | Entered Materials 309 | -10/Materials | Build established: Mutant 371 | -10/Materials | Identified exit to Mines 717 | -10/Materials | Core integrity fell below 50% 734 | -10/Materials | Lost 3 parts (1n2w) 855 | -10/Materials | Core integrity fell below 20% 866 | -10/Materials | Destroyed by G-34 Mercenary with Small Laser Last Messages --------------- 00729_ R-06 Scavenger collects Wheel. 00730_ G-34 Mercenary destroyed. 00734_ R-06 Scavenger collects Wheel. 00737_ Acquired Aluminum Leg. 00755_ Acquired Hammer. 00757_ Acquired Sensor Array. 00760_ Acquired Visual Processing Unit. 00762_ Dropped Aluminum Leg. 00766_ R-06 Scavenger collects Ion Engine. 00781_ K-01 Serf collects debris. 00810_ Triggered Blade Trap. 00810_ Massive razor-sharp blades shoot up from within the floor. 00810_ Lgt. Ion Engine severed. 00827_ U-05 Engineer lays Concrete. 00834_ G-34 Mercenary knocked back. 00841_ Hammer follow-up attack on G-34 Mercenary. 00854_ G-34 Mercenary knocked back. 00859_ Aluminum Leg destroyed. 00860_ G-34 Mercenary knocked back. 00866_ Hammer follow-up attack on G-34 Mercenary. Map ----- +----------------------------------------------------+ | ????????????????????# #? ""??# ## | | ???????????########## #? T"??# / % ## ### | | ???????????# # #? "???# + ### | | ???????????# """ # ## ????# % !% ## # | | ???????????# """ # ##+###### % ## # | | ???????????# """ # #% ## # " | | ???????????# + + ## # " | | ???????????# """ # """ """ # %## # " | | ???????????# """ # """ """ ####/#### # | | ???????????# """ ! # """ """ ]#?? ?# # | | ???????????# # ? # | | ???????????##+#####+# ### | | ????????????# ##### ###### #?? | | ????????????# * #????###+## ######?? | | ???????###### ##### #?????????## ######??? | | ???????# #???# #??????????# ## ??? | | ???????# #???# #??????????# ## ?? | | ??????## !! #???? #??????????# ## ? | | ??????# !! #???? #??????????# ## | | ??????# ! #####+##????????? # | | ??????# ! # #????????? # | | ??????# # #????????? # | | ??????# # #????????? > # ?? | | ??????# """ # #??????????????# ???? | | ??????# """ # #??????????????# ?????? | | ??????+ """ + @g#?????????????????????? | | ??????# # #?????????????????????? | | ??????# # #?????????????????????? | | ??????## ####### # #?????????????????????? | | ???????# ??????#+########?????????????????????? | | ???????# ???????????????????????????????????????? | | ????????????????????????????????????????????????? | | ????????????????????????????????????????????????? | | ?????????????????????????????????????????+####### | | ???????????????????????????? ???????????? ## | | ???????????????????????????? ??????????# ## " | | ??????????????????????????? ###+###### ## "" | | ???????????????????????????" ## "" | | ????????????????????????????T ## ! "" | | ?????????????????????????????? ]]! "# " | | ????????????????????????????????# ]!! T# | | ????????????????????????????????# ]!! "# | | ????????????????????????????????+ ######+ | | ????????????????????????????????# | | | ????????????????????????????????# #### | | ???????????????????????????????????????# | | ?????????????????????????????????????####+##### | | ?????????????????????????????????????# # | | ?????????????????????????????????????# """ # | | ?????????????????????????????????????# """ # | +----------------------------------------------------+ Best States ------------- Heat Dissipation 25 Energy Generation 10 Energy Capacity 125 Matter Stores 300 Matter Capacity 300 Sight Range 16 Terrain Scan Density 10 Evasion (%) 40 Item Schematics ----------------- Hcp. Storage Unit | -10/Materials | Hacked Robot Schematics ------------------ None Fabricated ------------ Nothing Alien Tech Used ----------------- None Achievements -------------- None Challenges ------------ None Game ------ Seed NeutralizingMachineCutter Manual? 0 Play Time 00:07:07 Cumulative 5.5 hours Start 2021.02.13 @ 19:57:20 End 2021.02.13 @ 20:04:26 Sessions 1 Manual Loads 0 Difficulty Rogue Special Mode None Game No. 10 Rogue 10 Adventurer 0 Explorer 0 Win Type - Total 0 Types 0/0/0/0/0/0/0/0/0 Lore% 4 Gallery% 15 Achievement% 14 Wizard Run 0 Options --------- ASCII 0 Keyboard 1 Movement Arrows Keybinds 0 Fullscreen 2 Font 18/SmallcapsGlow Map View 76x50 Tactical HUD 1 Map Filters NONE Filters NONE Steam 0 RUN: de9cea65-4ed1-4a71-afa5-3a239483c07d